fUST/lending_fUST_20241230
["ID","MTS","AMOUNT","RATE_DAILY","PERIOD"]
[347129457,1735513834202,-1282.22,0.00017807,2]
[347129458,1735513834213,-5164.75756255,0.00018,2]
[347129459,1735513834223,-823.0,0.00018028,2]
[347129460,1735513834233,-500.0,0.0001808,2]
[347129461,1735513834244,-2433.35,0.0001808,2]
[347129462,1735513834254,-500.0,0.0001808,2]
[347129463,1735513834264,-272.90828167,0.00018081,2]
[347129464,1735513834274,-500.0,0.00018081,2]
[347129465,1735513834284,-1282.22,0.00018081,2]
[347129466,1735513834293,-500.0,0.00018354,2]
[347129467,1735513834303,-2433.35,0.00018354,2]
[347129468,1735513834314,-500.0,0.00018354,2]
[347129469,1735513834324,-500.0,0.00018355,2]
[347129470,1735513834334,-1282.22,0.00018355,2]
[347129471,1735513834343,-500.0,0.00018628,2]
[347129472,1735513834353,-2433.35,0.00018628,2]
[347129473,1735513834363,-500.0,0.00018628,2]
[347129474,1735513834372,-500.0,0.00018629,2]
[347129475,1735513834382,-1282.22,0.00018629,2]
[347129476,1735513834391,-458.75249187,0.0001863,2]
[347129477,1735513834401,-500.0,0.00018902,2]
[347129478,1735513834411,-2433.35,0.00018902,2]
[347129479,1735513834421,-592.45,0.00018902,2]
[347129480,1735513834431,-500.0,0.00018903,2]
[347129481,1735513834440,-1282.22,0.00018903,2]
[347129482,1735513834450,-302.57643837,0.00019,2]
[347129483,1735513834460,-500.0,0.00019176,2]
[347129484,1735513834469,-2433.35,0.00019176,2]
[347129485,1735513834479,-500.0,0.00019177,2]
[347129486,1735513834489,-1282.22,0.00019177,2]
[347129487,1735513834499,-627.26,0.00019178,2]
[347129488,1735513834509,-627.26,0.00019178,2]
[347129489,1735513834519,-627.26,0.00019178,2]
[347129490,1735513834529,-627.26,0.00019178,2]
[347129491,1735513834539,-627.26,0.00019178,2]
[347129492,1735513834548,-627.26,0.00019178,2]
[347129493,1735513834557,-627.26,0.00019178,2]
[347129494,1735513834568,-627.26,0.00019178,2]
[347129495,1735513834577,-627.26,0.00019178,2]
[347129496,1735513834587,-627.26,0.00019178,2]
[347129497,1735513834596,-627.26,0.00019178,2]
[347129498,1735513834606,-627.26,0.00019178,2]
[347129499,1735513834615,-627.26,0.00019178,2]
[347129500,1735513834624,-627.26,0.00019178,2]
[347129501,1735513834634,-627.26,0.00019178,2]
[347129502,1735513834644,-627.26,0.00019178,2]
[347129503,1735513834653,-627.26,0.00019178,2]
[347129504,1735513834663,-627.26,0.00019178,2]
[347129505,1735513834673,-302.60665372,0.0001919,2]
[347129506,1735513834683,-500.0,0.0001945,2]
[347129507,1735513834693,-2433.35,0.0001945,2]
[347129508,1735513834702,-627.26,0.00019451,2]
[347129509,1735513834712,-500.0,0.00019451,2]
[347129510,1735513834722,-1282.22,0.00019451,2]
[347129511,1735513834731,-614.62117403,0.00019724,2]
[347129512,1735513834741,-2433.35,0.00019724,2]
[347129513,1735513834750,-627.26,0.00019725,2]
[347129514,1735513834760,-396.618799,0.00019725,2]
[347129515,1735513834770,-1282.22,0.00019725,2]
[347129516,1735513834780,-1152.0,0.00019757,2]
[347129517,1735513834790,-495.675,0.0001979,2]
[347129518,1735513834799,-2433.35,0.00019998,2]
[347129519,1735513834809,-627.26,0.00019999,2]
[347129520,1735513834820,-1282.22,0.00019999,2]
[347129521,1735513834830,-151.0,0.0002,2]
[347129522,1735513834840,-749.7887003,0.00020137,2]
[347129523,1735513834849,-704.9107508,0.00020137,2]
[347129524,1735513834861,-704.9107508,0.00020137,2]
[347129525,1735513834871,-2433.35,0.00020272,2]
[347129526,1735513834880,-627.26,0.00020273,2]
[347129527,1735513834890,-499.0,0.00020273,2]
[347129528,1735513834899,-1282.29399947,0.00020273,2]
[347129529,1735513834909,-153.5094505,0.00020274,2]
[347129530,1735513834919,-213.8477522,0.00020274,2]
[347129531,1735513834928,-153.5094505,0.00020274,2]
[347129532,1735513834938,-153.5094505,0.00020274,2]
[347129533,1735513834947,-153.5094505,0.00020274,2]
[347129534,1735513834957,-400.0,0.00020447,2]
[347129535,1735513834966,-2433.3647,0.00020546,2]
[347129536,1735513834975,-627.26,0.00020547,2]
[347129537,1735513834985,-414.38844,0.00020548,2]
[347129538,1735513834994,-202.3364839,0.00020626,2]
[347129539,1735513835003,-484.55,0.000208,2]
[347129540,1735513835013,-151.0,0.000208,4]
[347129541,1735513835023,-151.0,0.000208,3]
[347129542,1735513835034,-151.0,0.000208,4]
[347129543,1735513835045,-627.43285409,0.00020821,2]
[347129544,1735513835055,-244.77764145,0.00020834,2]
[347129545,1735513835065,-500.9643577,0.00020834,2]
[347129546,1735513835074,-13895.75862534,0.00020835,2]
[347129547,1735513835084,-15442.0316307,0.00020835,2]
[347129548,1735513835098,-355.5,0.00020835,2]
[347129549,1735513835111,-1272.32,0.00020835,2]
[347129779,1735513842979,-172.60476235,0.00020735,2]
[347129781,1735513842988,-1027.39523765,0.00020835,2]
[347132352,1735514950114,-190.18097584,0.00014243,2]
[347132382,1735515007468,-400.0,0.00013973,2]
[347132383,1735515007497,-309.81902416,0.00014243,2]
[347132384,1735515007526,-478.85635669,0.00014243,2]
[347132422,1735515032318,-206.8069445,0.00014143,2]
[347132423,1735515032328,-21.14364331,0.00014243,2]
[347132424,1735515032337,-500.0,0.00014243,2]
[347132425,1735515032347,-206.8069445,0.00014419,2]
[347132426,1735515032358,-2223.17,0.00014519,2]
[347132427,1735515032368,-1552.44172228,0.00014793,2]
[347132991,1735515038253,-670.72827772,0.00014793,2]
[347132993,1735515038262,-170.30326376,0.00015066,2]
[347133006,1735515038383,-129.69673624,0.00015066,2]
[347133008,1735515038393,-622.20011244,0.00015067,2]
[347133515,1735515043403,-1600.96988756,0.00015067,2]
[347133518,1735515043413,-630.93739564,0.00015341,2]
[347134097,1735516192746,-1436.44083198,0.00013833,2]
[347134098,1735516192779,-314.07873324,0.00013833,2]
[347134183,1735516232782,-2670.54837672,0.00013695,2]
[347134184,1735516232791,-400.0,0.00013973,2]
[347134186,1735516232801,-1592.23260436,0.00015341,2]
[347134188,1735516232810,-2223.17,0.00015615,2]
[347134190,1735516232819,-300.0,0.00015882,2]
[347134193,1735516232829,-1374.27129841,0.00015883,2]
[347134840,1735516240423,-500.0,0.00015882,2]
[347134842,1735516240434,-376.88808517,0.00015882,2]
[347135059,1735516243362,-123.11191483,0.00015882,2]
[347135060,1735516243371,-5573.60801426,0.00015883,2]
[347135061,1735516243380,-2704.37214442,0.00015883,2]
[347135063,1735516243430,-1295.86535619,0.00015883,2]
[347135171,1735516246448,-19572.29668,0.00015883,2]
[347135173,1735516246459,-894.242857,0.00015883,2]
[347135245,1735517432537,-656.29837822,0.00013595,2]
[347135246,1735517432549,-3407.50578106,0.00013595,2]
[347135247,1735517432558,-400.0,0.00013973,2]
[347135248,1735517432568,-500.0,0.00015884,2]
[347135249,1735517432577,-500.0,0.00015884,2]
[347135250,1735517432586,-300.0,0.00015886,2]
[347135251,1735517432595,-500.0,0.00015887,2]
[347135252,1735517432605,-500.0,0.00015887,2]
[347135253,1735517432615,-541.82702421,0.00015888,2]
[347135254,1735517432625,-1887.12,0.00015889,2]
[347135255,1735517432634,-500.0,0.00016158,2]
[347135256,1735517432644,-1887.12,0.00016163,2]
[347135257,1735517432654,-252.52268881,0.00016429,2]
[347135258,1735517432663,-500.0,0.00016429,2]
[347135259,1735517432672,-514.97506644,0.00016429,2]
[347135260,1735517432682,-371.58558552,0.00016429,2]
[347135261,1735517432691,-360.96909882,0.00016429,2]
[347135262,1735517432701,-500.0,0.00016429,2]
[347135263,1735517432710,-500.0,0.00016429,2]
[347135264,1735517432720,-500.0,0.00016429,2]
[347135265,1735517432729,-500.0,0.00016429,2]
[347135266,1735517432739,-500.0,0.00016436,2]
[347135267,1735517432748,-1887.12,0.00016437,2]
[347135268,1735517432758,-500.0,0.00016703,2]
[347135269,1735517432768,-1887.12,0.00016711,2]
[347135270,1735517432777,-500.0,0.00016977,2]
[347135271,1735517432787,-884.65891442,0.00016985,2]
[347135272,1735517432799,-1002.46108558,0.00016985,2]
[347135273,1735517432808,-98.43042958,0.00016999,2]
[347135274,1735517432820,-401.56957042,0.00016999,2]
[347135275,1735517432838,-500.0,0.00016999,2]
[347135276,1735517432850,-500.0,0.00016999,2]
[347135277,1735517432860,-500.0,0.00016999,2]
[347135278,1735517432870,-1283.41036924,0.00017,2]
[347135279,1735517432883,-4474.93854246,0.00017,2]
[347135280,1735517432892,-500.0,0.00017251,2]
[347135281,1735517432902,-1887.12,0.00017259,2]
[347135282,1735517432912,-500.0,0.00017273,2]
[347135283,1735517432922,-500.0,0.00017273,2]
[347135284,1735517432932,-500.0,0.00017273,2]
[347135285,1735517432942,-500.0,0.00017273,2]
[347135286,1735517432952,-189.188,0.00017291,2]
[347135287,1735517432962,-405.0,0.00017371,2]
[347135288,1735517432972,-500.0,0.00017525,2]
[347135289,1735517432981,-1887.12,0.00017533,2]
[347135290,1735517432992,-500.0,0.00017547,2]
[347135291,1735517433002,-500.0,0.00017547,2]
[347135292,1735517433013,-522.47679909,0.00017547,2]
[347135293,1735517433023,-305.34937568,0.00017547,2]
[347135294,1735517433032,-849.0,0.0001778,2]
[347135295,1735517433042,-429.9483,0.00017799,2]
[347135296,1735517433052,-1887.12,0.00017807,2]
[347135297,1735517433061,-500.0,0.00017821,2]
[347135298,1735517433070,-500.0,0.00017821,2]
[347135299,1735517433080,-328.72301964,0.000179,2]
[347135300,1735517433090,-150.17124225,0.000179,2]
[347135301,1735517433100,-500.0,0.00017973,2]
[347135302,1735517433110,-3473.93965634,0.00018,2]
[347135303,1735517433119,-119169.8911866,0.00018,2]
[347135304,1735517433129,-5164.75756255,0.00018,2]
[347135305,1735517433138,-500.0,0.00018,2]
[347135306,1735517433148,-3269.07607116,0.00018,2]
[347135307,1735517433160,-1543.878303,0.00018,2]
[347135308,1735517433170,-1543.878303,0.00018,2]
[347135309,1735517433180,-151.0,0.00018,2]
[347135310,1735517433190,-493.152663,0.00018,2]
[347135311,1735517433200,-493.152663,0.00018,2]
[347135312,1735517433211,-513.26550794,0.00018073,2]
[347135313,1735517433220,-620.62664,0.00018081,2]
[347135314,1735517433230,-620.62664,0.00018081,2]
[347135315,1735517433240,-1055.21599,0.00018081,2]
[347135316,1735517433250,-151.0,0.00018081,2]
[347135317,1735517433260,-411.978734,0.00018081,2]
[347135318,1735517433270,-411.978734,0.00018081,2]
[347135319,1735517433280,-151.0,0.00018081,2]
[347135320,1735517433290,-151.0,0.00018081,2]
[347135321,1735517433299,-171.409722,0.00018081,2]
[347135322,1735517433309,-171.409722,0.00018081,2]
[347135323,1735517433320,-151.0,0.00018081,2]
[347135324,1735517433329,-151.0,0.00018081,2]
[347135325,1735517433340,-300.374066,0.00018081,2]
[347135326,1735517433350,-151.0,0.00018081,2]
[347135327,1735517433359,-1935.134476,0.00018081,2]
[347135328,1735517433369,-1935.134476,0.00018081,2]
[347135329,1735517433379,-423.703661,0.00018081,2]
[347135330,1735517433388,-423.703661,0.00018081,2]
[347135331,1735517433400,-151.0,0.00018081,2]
[347135332,1735517433411,-1887.12,0.00018081,2]
[347135333,1735517433420,-281.844242,0.00018081,2]
[347135334,1735517433430,-281.844242,0.00018081,2]
[347135335,1735517433444,-203.52,0.00018095,2]
[347135336,1735517433454,-328.72301959,0.00018349,2]
[347135337,1735517433463,-153.026268,0.00018355,2]
[347135338,1735517433473,-183.611254,0.00018355,2]
[347135339,1735517433483,-183.611254,0.00018355,2]
[347135340,1735517433492,-414.601136,0.00018355,2]
[347135341,1735517433502,-414.601136,0.00018355,2]
[347135342,1735517433514,-151.0,0.00018355,2]
[347135343,1735517433524,-151.0,0.00018355,2]
[347135344,1735517433534,-1935.134476,0.00018355,2]
[347135345,1735517433544,-1935.134476,0.00018355,2]
[347135346,1735517433554,-423.703661,0.00018355,2]
[347135347,1735517433563,-423.703661,0.00018355,2]
[347135348,1735517433573,-151.0,0.00018355,2]
[347135349,1735517433583,-151.0,0.00018355,2]
[347135350,1735517433592,-222.273738,0.00018355,2]
[347135351,1735517433601,-222.273738,0.00018355,2]
[347135352,1735517433611,-151.0,0.00018355,2]
[347135353,1735517433621,-1887.12,0.00018355,2]
[347135354,1735517433631,-151.0,0.00018357,2]
[347135355,1735517433641,-151.0,0.00018357,2]
[347135356,1735517433650,-151.0,0.00018357,2]
[347135357,1735517433660,-183.897597,0.00018357,2]
[347135358,1735517433670,-171.409722,0.00018357,2]
[347135359,1735517433679,-171.409722,0.00018357,2]
[347135360,1735517433689,-1543.878303,0.00018357,2]
[347135361,1735517433699,-1543.878303,0.00018357,2]
[347135362,1735517433709,-151.0,0.00018357,2]
[347135363,1735517433718,-151.0,0.00018357,2]
[347135364,1735517433728,-180.883762,0.00018357,2]
[347135365,1735517433738,-493.152663,0.00018357,2]
[347135366,1735517433748,-493.152663,0.00018357,2]
[347135367,1735517433758,-281.844242,0.00018357,2]
[347135368,1735517433767,-281.844242,0.00018357,2]
[347135369,1735517433776,-150.17124223,0.000184,2]
[347135370,1735517433786,-251.396649,0.00018629,2]
[347135371,1735517433795,-251.396649,0.00018629,2]
[347135372,1735517433805,-151.0,0.00018629,2]
[347135373,1735517433814,-151.0,0.00018629,2]
[347135374,1735517433824,-411.978734,0.00018629,2]
[347135375,1735517433833,-411.978734,0.00018629,2]
[347135376,1735517433843,-151.0,0.00018629,2]
[347135377,1735517433853,-151.0,0.00018629,2]
[347135378,1735517433862,-151.0,0.00018629,2]
[347135379,1735517433872,-151.0,0.00018629,2]
[347135380,1735517433881,-246.79535,0.00018629,2]
[347135381,1735517433890,-250.251562,0.00018629,2]
[347135382,1735517433899,-250.251562,0.00018629,2]
[347135383,1735517433908,-1887.12,0.00018629,2]
[347135384,1735517433918,-328.72301959,0.00018797,2]
[347135385,1735517433929,-151.0,0.000189,2]
[347135386,1735517433939,-2385.41130639,0.000189,2]
[347135387,1735517433949,-315.152492,0.000189,2]
[347135388,1735517433958,-315.152492,0.000189,2]
[347135389,1735517433968,-368.493787,0.000189,2]
[347135390,1735517433978,-368.493787,0.000189,2]
[347135391,1735517433987,-150.17124223,0.000189,2]
[347135392,1735517433997,-423.703661,0.00018903,2]
[347135393,1735517434007,-423.703661,0.00018903,2]
[347135394,1735517434017,-1887.12,0.00018903,2]
[347135395,1735517434027,-1935.134476,0.00018905,2]
[347135396,1735517434036,-1935.134476,0.00018905,2]
[347135397,1735517434046,-151.0,0.00018905,2]
[347135398,1735517434056,-151.88518,0.00019177,2]
[347135399,1735517434065,-153.14053,0.00019177,2]
[347135400,1735517434075,-183.611254,0.00019177,2]
[347135401,1735517434084,-183.611254,0.00019177,2]
[347135402,1735517434094,-414.601136,0.00019177,2]
[347135403,1735517434103,-414.601136,0.00019177,2]
[347135404,1735517434112,-620.62664,0.00019177,2]
[347135405,1735517434122,-620.62664,0.00019177,2]
[347135406,1735517434132,-1055.21599,0.00019177,2]
[347135407,1735517434141,-151.0,0.00019177,2]
[347135408,1735517434151,-151.0,0.00019177,2]
[347135409,1735517434161,-411.978734,0.00019177,2]
[347135410,1735517434171,-411.978734,0.00019177,2]
[347135411,1735517434180,-171.409722,0.00019177,2]
[347135412,1735517434189,-171.409722,0.00019177,2]
[347135413,1735517434199,-1543.878303,0.00019177,2]
[347135414,1735517434208,-1543.878303,0.00019177,2]
[347135415,1735517434218,-151.0,0.00019177,2]
[347135416,1735517434227,-151.0,0.00019177,2]
[347135417,1735517434237,-1935.134476,0.00019177,2]
[347135418,1735517434246,-1935.134476,0.00019177,2]
[347135419,1735517434258,-493.152663,0.00019177,2]
[347135420,1735517434268,-493.152663,0.00019177,2]
[347135421,1735517434278,-423.703661,0.00019177,2]
[347135422,1735517434287,-423.703661,0.00019177,2]
[347135423,1735517434297,-151.0,0.00019177,2]
[347135424,1735517434307,-151.0,0.00019177,2]
[347135425,1735517434317,-222.273738,0.00019177,2]
[347135426,1735517434327,-222.273738,0.00019177,2]
[347135427,1735517434337,-151.0,0.00019177,2]
[347135428,1735517434349,-1887.12,0.00019177,2]
[347135429,1735517434359,-281.844242,0.00019177,2]
[347135430,1735517434369,-281.844242,0.00019177,2]
[347135431,1735517434379,-151.0,0.00019178,2]
[347135432,1735517434389,-151.0,0.00019178,2]
[347135433,1735517434399,-151.0,0.00019178,2]
[347135434,1735517434409,-151.0,0.00019178,2]
[347135435,1735517434419,-222.273738,0.00019178,2]
[347135436,1735517434429,-222.273738,0.00019178,2]
[347135437,1735517434439,-250.251562,0.00019178,2]
[347135438,1735517434449,-250.251562,0.00019178,2]
[347135439,1735517434459,-151.0,0.00019178,2]
[347135440,1735517434468,-198.839798,0.00019178,2]
[347135441,1735517434478,-328.72301959,0.00019246,2]
[347135442,1735517434488,-280.546276,0.00019345,2]
[347135443,1735517434498,-315.152492,0.00019345,2]
[347135444,1735517434507,-315.152492,0.00019345,2]
[347135445,1735517434517,-368.493787,0.00019345,2]
[347135446,1735517434526,-368.493787,0.00019345,2]
[347135447,1735517434536,-281.844242,0.00019345,2]
[347135448,1735517434546,-281.844242,0.00019345,2]
[347135449,1735517434556,-150.17124223,0.000194,2]
[347135450,1735517434565,-171.409722,0.00019451,2]
[347135451,1735517434575,-171.409722,0.00019451,2]
[347135452,1735517434584,-151.0,0.00019451,2]
[347135453,1735517434593,-151.0,0.00019451,2]
[347135454,1735517434602,-1887.12,0.00019451,2]
[347135455,1735517434611,-328.72301959,0.00019695,2]
[347135456,1735517434621,-1887.12,0.00019725,2]
[347135457,1735517434631,-500.0,0.00019789,2]
[347135458,1735517434640,-151.453422,0.00019789,2]
[347135459,1735517434650,-151.0,0.00019789,2]
[347135460,1735517434659,-151.0,0.00019789,2]
[347135461,1735517434668,-500.0,0.00019789,2]
[347135462,1735517434677,-275.61587619,0.00019789,2]
[347135463,1735517434687,-748.63,0.00019789,2]
[347135464,1735517434696,-500.0,0.00019789,2]
[347135465,1735517434706,-475.012,0.0001979,2]
[347135466,1735517434715,-150.17124223,0.000199,2]
[347135467,1735517434725,-500.0,0.00019973,2]
[347135469,1735517434734,-622.71102275,0.00019973,2]
[347135471,1735517434744,-500.0,0.00019973,2]
[347135473,1735517434753,-251.396649,0.00019999,2]
[347135475,1735517434762,-251.396649,0.00019999,2]
[347135477,1735517434772,-151.0,0.00019999,2]
[347135479,1735517434781,-620.62664,0.00019999,2]
[347135481,1735517434790,-620.62664,0.00019999,2]
[347135483,1735517434799,-1055.21599,0.00019999,2]
[347135485,1735517434809,-1055.21599,0.00019999,2]
[347135487,1735517434819,-151.0,0.00019999,2]
[347135489,1735517434828,-411.978734,0.00019999,2]
[347135501,1735517434931,-411.978734,0.00019999,2]
[347135503,1735517434941,-171.409722,0.00019999,2]
[347135505,1735517434950,-171.409722,0.00019999,2]
[347135507,1735517434959,-1543.878303,0.00019999,2]
[347135509,1735517434968,-1543.878303,0.00019999,2]
[347135511,1735517434977,-151.0,0.00019999,2]
[347135513,1735517434987,-151.0,0.00019999,2]
[347135515,1735517434996,-1935.134476,0.00019999,2]
[347135517,1735517435006,-1935.134476,0.00019999,2]
[347135519,1735517435015,-493.152663,0.00019999,2]
[347135521,1735517435024,-493.152663,0.00019999,2]
[347135523,1735517435034,-423.703661,0.00019999,2]
[347135525,1735517435043,-423.703661,0.00019999,2]
[347135527,1735517435052,-151.0,0.00019999,2]
[347135529,1735517435061,-151.0,0.00019999,2]
[347135531,1735517435071,-222.273738,0.00019999,2]
[347135533,1735517435080,-222.273738,0.00019999,2]
[347135535,1735517435089,-151.0,0.00019999,2]
[347135537,1735517435099,-1887.12,0.00019999,2]
[347135539,1735517435108,-281.844242,0.00019999,2]
[347135541,1735517435117,-281.844242,0.00019999,2]
[347135543,1735517435128,-2145.24909166,0.0002,30]
[347135545,1735517435137,-216305.82237554,0.0002,4]
[347135548,1735517435151,-1866.5,0.0002,4]
[347135550,1735517435162,-2308.53780713,0.0002,4]
[347135552,1735517435173,-1014.9430218,0.0002,4]
[347135554,1735517435184,-558.21120081,0.0002,4]
[347135896,1735517438436,-5497.92343344,0.0002,4]
[347135908,1735517438543,-329.84879696,0.0002,4]
[347135910,1735517438555,-160946.93952718,0.0002,4]
[347135912,1735517438567,-1715.84985406,0.0002,4]
[347135916,1735517438595,-974.49,0.0002,4]
[347136303,1735517443645,-4670.48731053,0.0002,4]
[347136305,1735517443658,-1225.179555,0.0002,4]
[347136307,1735517443670,-691.15,0.0002,4]
[347136550,1735517446438,-36334.14324,0.0002,4]
[347136551,1735517446449,-9385.2,0.0002,4]
[347136552,1735517446491,-347.0,0.0002,4]
[347138603,1735518519090,1205.569124,0.0002,120]
[347138604,1735518573856,-1362.42996623,0.00013422,2]
[347138605,1735518573882,-70.24854029,0.00013973,2]
[347138606,1735518573916,-329.75145971,0.00013973,2]
[347138607,1735518573943,-154.01950015,0.00014,2]
[347138634,1735518632674,-145.98049985,0.00014,2]
[347138635,1735518632686,-4937.02387859,0.00014988,2]
[347138636,1735518632785,-1556.80432325,0.00014988,2]
[347138637,1735518632796,-2585.98612199,0.00014989,2]
[347138638,1735518632811,-3907.84207985,0.00014989,2]
[347138639,1735518632823,-6493.82820184,0.00014992,2]
[347138640,1735518632834,-486.971779,0.00015551,2]
[347138641,1735518632845,-176.2058721,0.00015754,2]
[347138642,1735518632856,-500.0,0.00016429,2]
[347138643,1735518632866,-500.0,0.00016429,2]
[347138644,1735518632876,-596.33,0.00016703,2]
[347138645,1735518632885,-500.0,0.00016703,2]
[347138646,1735518632897,-351.68824645,0.0001687,2]
[347138647,1735518632908,-300.0,0.00016969,2]
[347138648,1735518632919,-232.2603112,0.0001697,2]
[347138649,1735518632932,-492.55097781,0.0001697,2]
[347138650,1735518632943,-500.0,0.0001697,2]
[347138651,1735518632953,-500.0,0.0001697,2]
[347138652,1735518632965,-500.0,0.0001697,2]
[347138653,1735518632976,-500.0,0.0001697,2]
[347138654,1735518632987,-500.0,0.0001697,2]
[347138655,1735518633001,-500.0,0.0001697,2]
[347138656,1735518633013,-500.0,0.0001697,2]
[347138657,1735518633026,-254.74297145,0.0001697,2]
[347138658,1735518633038,-500.0,0.0001697,2]
[347138659,1735518633052,-500.0,0.0001697,2]
[347138660,1735518633063,-500.0,0.0001697,2]
[347138661,1735518633074,-500.0,0.0001697,2]
[347138662,1735518633086,-500.0,0.0001697,2]
[347138663,1735518633097,-500.0,0.0001697,2]
[347138664,1735518633109,-500.0,0.0001697,2]
[347138665,1735518633121,-500.0,0.0001697,2]
[347138666,1735518633133,-500.0,0.0001697,2]
[347138667,1735518633146,-500.0,0.0001697,2]
[347138668,1735518633158,-500.0,0.0001697,2]
[347138669,1735518633169,-500.0,0.0001697,2]
[347138670,1735518633179,-500.0,0.0001697,2]
[347138671,1735518633189,-500.0,0.0001697,2]
[347138672,1735518633201,-500.0,0.0001697,2]
[347138673,1735518633213,-500.0,0.0001697,2]
[347138674,1735518633224,-500.0,0.0001697,2]
[347138675,1735518633235,-500.0,0.0001697,2]
[347138676,1735518633245,-500.0,0.0001697,2]
[347138677,1735518633256,-500.0,0.0001697,2]
[347138678,1735518633267,-500.0,0.0001697,2]
[347138679,1735518633278,-500.0,0.0001697,2]
[347138680,1735518633288,-500.0,0.0001697,2]
[347138681,1735518633300,-500.0,0.0001697,2]
[347138682,1735518633310,-500.0,0.0001697,2]
[347138683,1735518633321,-500.0,0.0001697,2]
[347138684,1735518633331,-500.0,0.0001697,2]
[347138685,1735518633342,-500.0,0.0001697,2]
[347138686,1735518633353,-500.0,0.0001697,2]
[347138687,1735518633363,-500.0,0.0001697,2]
[347138688,1735518633374,-543.93030205,0.0001697,2]
[347138689,1735518633384,-500.0,0.0001697,2]
[347138690,1735518633394,-500.0,0.0001697,2]
[347138691,1735518633405,-500.0,0.0001697,2]
[347138692,1735518633416,-500.0,0.0001697,2]
[347138693,1735518633427,-500.0,0.0001697,2]
[347138694,1735518633438,-233.055,0.0001697,2]
[347138695,1735518633448,-500.0,0.0001697,2]
[347138696,1735518633460,-500.0,0.0001697,2]
[347138697,1735518633470,-500.0,0.0001697,2]
[347138698,1735518633482,-500.0,0.0001697,2]
[347138699,1735518633492,-500.0,0.0001697,2]
[347138700,1735518633503,-500.0,0.0001697,2]
[347138701,1735518633514,-500.0,0.0001697,2]
[347138702,1735518633524,-500.0,0.0001697,2]
[347138703,1735518633535,-500.0,0.0001697,2]
[347138704,1735518633545,-500.0,0.0001697,2]
[347138705,1735518633555,-500.0,0.0001697,2]
[347138706,1735518633566,-500.0,0.0001697,2]
[347138707,1735518633577,-500.0,0.0001697,2]
[347138708,1735518633588,-500.0,0.0001697,2]
[347138709,1735518633599,-500.0,0.0001697,2]
[347138710,1735518633610,-500.0,0.0001697,2]
[347138711,1735518633621,-500.0,0.0001697,2]
[347138712,1735518633633,-500.0,0.0001697,2]
[347138713,1735518633645,-500.0,0.0001697,2]
[347138714,1735518633769,-500.0,0.0001697,2]
[347138715,1735518633780,-500.0,0.0001697,2]
[347138716,1735518633789,-500.0,0.0001697,2]
[347138717,1735518633799,-500.0,0.0001697,2]
[347138718,1735518633808,-500.0,0.0001697,2]
[347138719,1735518633818,-500.0,0.0001697,2]
[347138720,1735518633827,-500.0,0.0001697,2]
[347138721,1735518633836,-500.0,0.0001697,2]
[347138722,1735518633846,-500.0,0.0001697,2]
[347138723,1735518633855,-500.0,0.0001697,2]
[347138724,1735518633864,-500.0,0.0001697,2]
[347138725,1735518633874,-500.0,0.0001697,2]
[347138726,1735518633883,-500.0,0.0001697,2]
[347138727,1735518633892,-500.0,0.0001697,2]
[347138728,1735518633901,-500.0,0.0001697,2]
[347138729,1735518633911,-500.0,0.0001697,2]